Workbook

Sheet 9.2.2.1_BWO_D
A1: Gebäude des gemeinnützigen Wohnungsbaus* nach Kategorie, Bauperiode und Geschosszahl | H1: T 9.02.02.01-BWO
A2: 2014
B4: Gebäude mit Wohnnutzung
B5: Total | C5: Wohngebäude | H5: Gebäude mit teilweiser Wohnnutzung
C6: Total | D6: Reine Wohngebäude | G6: Wohngebäude mit Nebennutzung
D7: Total | E7: Einfamilienhäuser | F7: Mehrfamilienhäuser
A9: Total | B9: 22876 | C9: 22558 | D9: 21247 | E9: 6079 | F9: 15168 | G9: 1311 | H9: 318
A11: Nach Bauperiode
A12: Vor 1919 erbaut | B12: 1088 | C12: 1041 | D12: 845 | E12: 368 | F12: 477 | G12: 196 | H12: 47
A13: Zwischen 1919 und 1945 erbaut | B13: 5369 | C13: 5338 | D13: 5085 | E13: 2910 | F13: 2175 | G13: 253 | H13: 31
A14: Zwischen 1946 und 1960 erbaut | B14: 7179 | C14: 7142 | D14: 6958 | E14: 2005 | F14: 4953 | G14: 184 | H14: 37
A15: Zwischen 1961 und 1970 erbaut | B15: 2783 | C15: 2734 | D15: 2589 | E15: 170 | F15: 2419 | G15: 145 | H15: 49
A16: Zwischen 1971 und 1980 erbaut | B16: 1719 | C16: 1675 | D16: 1554 | E16: 21 | F16: 1533 | G16: 121 | H16: 44
A17: Zwischen 1981 und 1990 erbaut | B17: 1281 | C17: 1267 | D17: 1180 | E17: 189 | F17: 991 | G17: 87 | H17: 14
A18: Zwischen 1991 und 2000 erbaut | B18: 1955 | C18: 1885 | D18: 1718 | E18: 219 | F18: 1499 | G18: 167 | H18: 70
A19: Zwischen 2001 und 2005 erbaut | B19: 454 | C19: 447 | D19: 398 | E19: 40 | F19: 358 | G19: 49 | H19: 7
A20: Zwischen 2006 und 2010 erbaut | B20: 629 | C20: 617 | D20: 552 | E20: 93 | F20: 459 | G20: 65 | H20: 12
A21: Zwischen 2011 und 2014 erbaut | B21: 419 | C21: 412 | D21: 368 | E21: 64 | F21: 304 | G21: 44 | H21: 7
A23: Nach Geschosszahl
A24: 1 Geschoss | B24: =SUM(B25:B34) -> 169 | C24: =SUM(C25:C34) -> 157 | D24: 153 | E24: 134 | F24: 19 | G24: 4 | H24: 12
A25: Vor 1919 erbaut | B25: 3 | C25: 3 | D25: 2 | E25: 2 | F25: 0 | G25: 1 | H25: 0
A26: Zwischen 1919 und 1945 erbaut | B26: 31 | C26: 30 | D26: 30 | E26: 30 | F26: 0 | G26: 0 | H26: 1
A27: Zwischen 1946 und 1960 erbaut | B27: 8 | C27: 7 | D27: 7 | E27: 5 | F27: 2 | G27: 0 | H27: 1
A28: Zwischen 1961 und 1970 erbaut | B28: 54 | C28: 48 | D28: 47 | E28: 36 | F28: 11 | G28: 1 | H28: 6
A29: Zwischen 1971 und 1980 erbaut | B29: 1 | C29: 1 | D29: 1 | E29: 1 | F29: 0 | G29: 0 | H29: 0
A30: Zwischen 1981 und 1990 erbaut | B30: 1 | C30: 1 | D30: 1 | E30: 1 | F30: 0 | G30: 0 | H30: 0
A31: Zwischen 1991 und 2000 erbaut | B31: 68 | C31: 66 | D31: 64 | E31: 58 | F31: 6 | G31: 2 | H31: 2
A32: Zwischen 2001 und 2005 erbaut | B32: 1 | C32: 1 | D32: 1 | E32: 1 | F32: 0 | G32: 0 | H32: 0
A33: Zwischen 2006 und 2010 erbaut | B33: 1 | C33: 0 | D33: 0 | E33: 0 | F33: 0 | G33: 0 | H33: 1
A34: Zwischen 2011 und 2014 erbaut | B34: 1 | C34: 0 | D34: 0 | E34: 0 | F34: 0 | G34: 0 | H34: 1
A35: 2 Geschosse | B35: =SUM(B36:B45) -> 2967 | C35: =SUM(C36:C45) -> 2945 | D35: 2895 | E35: 1925 | F35: 970 | G35: 50 | H35: 22
A36: Vor 1919 erbaut | B36: 285 | C36: 282 | D36: 274 | E36: 225 | F36: 49 | G36: 8 | H36: 3
A37: Zwischen 1919 und 1945 erbaut | B37: 1008 | C37: 1007 | D37: 1001 | E37: 903 | F37: 98 | G37: 6 | H37: 1
A38: Zwischen 1946 und 1960 erbaut | B38: 1099 | C38: 1095 | D38: 1074 | E38: 496 | F38: 578 | G38: 21 | H38: 4
A39: Zwischen 1961 und 1970 erbaut | B39: 207 | C39: 199 | D39: 197 | E39: 105 | F39: 92 | G39: 2 | H39: 8
A40: Zwischen 1971 und 1980 erbaut | B40: 57 | C40: 56 | D40: 54 | E40: 10 | F40: 44 | G40: 2 | H40: 1
A41: Zwischen 1981 und 1990 erbaut | B41: 149 | C41: 148 | D41: 147 | E41: 101 | F41: 46 | G41: 1 | H41: 1
A42: Zwischen 1991 und 2000 erbaut | B42: 121 | C42: 118 | D42: 108 | E42: 62 | F42: 46 | G42: 10 | H42: 3
A43: Zwischen 2001 und 2005 erbaut | B43: 12 | C43: 12 | D43: 12 | E43: 10 | F43: 2 | G43: 0 | H43: 0
A44: Zwischen 2006 und 2010 erbaut | B44: 18 | C44: 17 | D44: 17 | E44: 8 | F44: 9 | G44: 0 | H44: 1
A45: Zwischen 2011 und 2014 erbaut | B45: 11 | C45: 11 | D45: 11 | E45: 5 | F45: 6 | G45: 0 | H45: 0
A46: 3 Geschosse | B46: =SUM(B47:B56) -> 5453 | C46: =SUM(C47:C56) -> 5398 | D46: =SUM(D47:D56) -> 5264 | E46: =SUM(E47:E56) -> 1362 | F46: =SUM(F47:F56) -> 3902 | G46: =SUM(G47:G56) -> 134 | H46: =SUM(H47:H56) -> 55
A47: Vor 1919 erbaut | B47: 270 | C47: 254 | D47: 227 | E47: 83 | F47: 144 | G47: 27 | H47: 16
A48: Zwischen 1919 und 1945 erbaut | B48: 1235 | C48: 1229 | D48: 1215 | E48: 857 | F48: 358 | G48: 14 | H48: 6
A49: Zwischen 1946 und 1960 erbaut | B49: 1693 | C49: 1687 | D49: 1674 | E49: 87 | F49: 1587 | G49: 13 | H49: 6
A50: Zwischen 1961 und 1970 erbaut | B50: 659 | C50: 650 | D50: 634 | E50: 8 | F50: 626 | G50: 16 | H50: 9
A51: Zwischen 1971 und 1980 erbaut | B51: 303 | C51: 302 | D51: 285 | E51: 10 | F51: 275 | G51: 17 | H51: 1
A52: Zwischen 1981 und 1990 erbaut | B52: 399 | C52: 397 | D52: 388 | E52: 85 | F52: 303 | G52: 9 | H52: 2
A53: Zwischen 1991 und 2000 erbaut | B53: 531 | C53: 518 | D53: 488 | E53: 83 | F53: 405 | G53: 30 | H53: 13
A54: Zwischen 2001 und 2005 erbaut | B54: 102 | C54: 100 | D54: 98 | E54: 17 | F54: 81 | G54: 2 | H54: 2
A55: Zwischen 2006 und 2010 erbaut | B55: 141 | C55: 141 | D55: 138 | E55: 73 | F55: 65 | G55: 3 | H55: 0
A56: Zwischen 2011 und 2014 erbaut | B56: 120 | C56: 120 | D56: 117 | E56: 59 | F56: 58 | G56: 3 | H56: 0
A57: 4 Geschosse | B57: =SUM(B58:B67) -> 7113 | C57: =SUM(C58:C67) -> 7032 | D57: =SUM(D58:D67) -> 6762 | E57: =SUM(E58:E67) -> 2592 | F57: =SUM(F58:F67) -> 4170 | G57: =SUM(G58:G67) -> 270 | H57: =SUM(H58:H67) -> 81
A58: Vor 1919 erbaut | B58: 209 | C58: 198 | D58: 163 | E58: 56 | F58: 107 | G58: 35 | H58: 11
A59: Zwischen 1919 und 1945 erbaut | B59: 1485 | C59: 1472 | D59: 1433 | E59: 1083 | F59: 350 | G59: 39 | H59: 13
A60: Zwischen 1946 und 1960 erbaut | B60: 2640 | C60: 2630 | D60: 2581 | E60: 1417 | F60: 1164 | G60: 49 | H60: 10
A61: Zwischen 1961 und 1970 erbaut | B61: 735 | C61: 732 | D61: 708 | E61: 1 | F61: 707 | G61: 24 | H61: 3
A62: Zwischen 1971 und 1980 erbaut | B62: 495 | C62: 480 | D62: 454 | E62: 0 | F62: 454 | G62: 26 | H62: 15
A63: Zwischen 1981 und 1990 erbaut | B63: 365 | C63: 360 | D63: 338 | E63: 2 | F63: 336 | G63: 22 | H63: 5
A64: Zwischen 1991 und 2000 erbaut | B64: 725 | C64: 706 | D64: 665 | E64: 9 | F64: 656 | G64: 41 | H64: 19
A65: Zwischen 2001 und 2005 erbaut | B65: 175 | C65: 175 | D65: 165 | E65: 12 | F65: 153 | G65: 10 | H65: 0
A66: Zwischen 2006 und 2010 erbaut | B66: 197 | C66: 193 | D66: 172 | E66: 12 | F66: 160 | G66: 21 | H66: 4
A67: Zwischen 2011 und 2014 erbaut | B67: 87 | C67: 86 | D67: 83 | E67: 0 | F67: 83 | G67: 3 | H67: 1
A68: 5 Geschosse | B68: =SUM(B69:B78) -> 3903 | C68: =SUM(C69:C78) -> 3840 | D68: =SUM(D69:D78) -> 3550 | E68: =SUM(E69:E78) -> 66 | F68: =SUM(F69:F78) -> 3484 | G68: =SUM(G69:G78) -> 290 | H68: =SUM(H69:H78) -> 63
A69: Vor 1919 erbaut | B69: 148 | C69: 144 | D69: 100 | E69: 2 | F69: 98 | G69: 44 | H69: 4
A70: Zwischen 1919 und 1945 erbaut | B70: 865 | C70: 862 | D70: 785 | E70: 37 | F70: 748 | G70: 77 | H70: 3
A71: Zwischen 1946 und 1960 erbaut | B71: 1308 | C71: 1299 | D71: 1246 | E71: 0 | F71: 1246 | G71: 53 | H71: 9
A72: Zwischen 1961 und 1970 erbaut | B72: 477 | C72: 472 | D72: 456 | E72: 20 | F72: 436 | G72: 16 | H72: 5
A73: Zwischen 1971 und 1980 erbaut | B73: 315 | C73: 308 | D73: 293 | E73: 0 | F73: 293 | G73: 15 | H73: 7
A74: Zwischen 1981 und 1990 erbaut | B74: 176 | C74: 175 | D74: 162 | E74: 0 | F74: 162 | G74: 13 | H74: 1
A75: Zwischen 1991 und 2000 erbaut | B75: 346 | C75: 317 | D75: 278 | E75: 7 | F75: 271 | G75: 39 | H75: 29
A76: Zwischen 2001 und 2005 erbaut | B76: 68 | C76: 68 | D76: 59 | E76: 0 | F76: 59 | G76: 9 | H76: 0
A77: Zwischen 2006 und 2010 erbaut | B77: 133 | C77: 130 | D77: 114 | E77: 0 | F77: 114 | G77: 16 | H77: 3
A78: Zwischen 2011 und 2014 erbaut | B78: 67 | C78: 65 | D78: 57 | E78: 0 | F78: 57 | G78: 8 | H78: 2
A79: 6 Geschosse und mehr | B79: =SUM(B80:B89) -> 3271 | C79: =SUM(C80:C89) -> 3186 | D79: =SUM(D80:D89) -> 2623 | E79: =SUM(E80:E89) -> 0 | F79: =SUM(F80:F89) -> 2623 | G79: =SUM(G80:G89) -> 563 | H79: =SUM(H80:H89) -> 85
A80: Vor 1919 erbaut | B80: 173 | C80: 160 | D80: 79 | E80: 0 | F80: 79 | G80: 81 | H80: 13
A81: Zwischen 1919 und 1945 erbaut | B81: 745 | C81: 738 | D81: 621 | E81: 0 | F81: 621 | G81: 117 | H81: 7
A82: Zwischen 1946 und 1960 erbaut | B82: 431 | C82: 424 | D82: 376 | E82: 0 | F82: 376 | G82: 48 | H82: 7
A83: Zwischen 1961 und 1970 erbaut | B83: 651 | C83: 633 | D83: 547 | E83: 0 | F83: 547 | G83: 86 | H83: 18
A84: Zwischen 1971 und 1980 erbaut | B84: 548 | C84: 528 | D84: 467 | E84: 0 | F84: 467 | G84: 61 | H84: 20
A85: Zwischen 1981 und 1990 erbaut | B85: 191 | C85: 186 | D85: 144 | E85: 0 | F85: 144 | G85: 42 | H85: 5
A86: Zwischen 1991 und 2000 erbaut | B86: 164 | C86: 160 | D86: 115 | E86: 0 | F86: 115 | G86: 45 | H86: 4
A87: Zwischen 2001 und 2005 erbaut | B87: 96 | C87: 91 | D87: 63 | E87: 0 | F87: 63 | G87: 28 | H87: 5
A88: Zwischen 2006 und 2010 erbaut | B88: 139 | C88: 136 | D88: 111 | E88: 0 | F88: 111 | G88: 25 | H88: 3
A89: Zwischen 2011 und 2014 erbaut | B89: 133 | C89: 130 | D89: 100 | E89: 0 | F89: 100 | G89: 30 | H89: 3
A92: * Grundgesamtheit: vgl. Erläuterungen | B92: www.bwo.admin.ch/dokumentation/00101/00530/00531/index.html?lang=de
A93: Bundesamt für Wohnungswesen BWO
A94: Auskunft: info@bwo.admin.ch

Sheet 9.2.2.1_BWO_F
A1: Bâtiments des maîtres d’ouvrage d’utilité publique* selon la catégorie, l'époque de construction et le nombre d'étages | H1: T 9.02.02.01-OFL
A2: 2014
B4: Bâtiments à usage d'habitation
B5: Total | C5: Bâtiments d'habitation | H5: Bâtiments partiellement à usage d'habitation
C6: Total | D6: Bâtiments exclusivement à usage d'habitation | G6: Bâtiments d'habitation avec usage annexe
D7: Total | E7: Maisons individuelles | F7: Maisons à plusieurs logements
A9: Total | B9: 22876 | C9: 22558 | D9: 21247 | E9: 6079 | F9: 15168 | G9: 1311 | H9: 318
A11: Selon l'époque de construction
A12: Construits avant 1919 | B12: 1088 | C12: 1041 | D12: 845 | E12: 368 | F12: 477 | G12: 196 | H12: 47
A13: Construits entre 1919 et 1945 | B13: 5369 | C13: 5338 | D13: 5085 | E13: 2910 | F13: 2175 | G13: 253 | H13: 31
A14: Construits entre 1946 et 1960 | B14: 7179 | C14: 7142 | D14: 6958 | E14: 2005 | F14: 4953 | G14: 184 | H14: 37
A15: Construits entre 1961 et 1970 | B15: 2783 | C15: 2734 | D15: 2589 | E15: 170 | F15: 2419 | G15: 145 | H15: 49
A16: Construits entre 1971 et 1980 | B16: 1719 | C16: 1675 | D16: 1554 | E16: 21 | F16: 1533 | G16: 121 | H16: 44
A17: Construits entre 1981 et 1990 | B17: 1281 | C17: 1267 | D17: 1180 | E17: 189 | F17: 991 | G17: 87 | H17: 14
A18: Construits entre 1991 et 2000 | B18: 1955 | C18: 1885 | D18: 1718 | E18: 219 | F18: 1499 | G18: 167 | H18: 70
A19: Construits entre 2001 et 2005 | B19: 454 | C19: 447 | D19: 398 | E19: 40 | F19: 358 | G19: 49 | H19: 7
A20: Construits entre 2006 et 2010 | B20: 629 | C20: 617 | D20: 552 | E20: 93 | F20: 459 | G20: 65 | H20: 12
A21: Construits entre 2011 et 2014 | B21: 419 | C21: 412 | D21: 368 | E21: 64 | F21: 304 | G21: 44 | H21: 7
A23: Selon le nombre d'étages
A24: 1 étage | B24: =SUM(B25:B34) -> 169 | C24: =SUM(C25:C34) -> 157 | D24: 153 | E24: 134 | F24: 19 | G24: 4 | H24: 12
A25: Construits avant 1919 | B25: 3 | C25: 3 | D25: 2 | E25: 2 | F25: 0 | G25: 1 | H25: 0
A26: Construits entre 1919 et 1945 | B26: 31 | C26: 30 | D26: 30 | E26: 30 | F26: 0 | G26: 0 | H26: 1
A27: Construits entre 1946 et 1960 | B27: 8 | C27: 7 | D27: 7 | E27: 5 | F27: 2 | G27: 0 | H27: 1
A28: Construits entre 1961 et 1970 | B28: 54 | C28: 48 | D28: 47 | E28: 36 | F28: 11 | G28: 1 | H28: 6
A29: Construits entre 1971 et 1980 | B29: 1 | C29: 1 | D29: 1 | E29: 1 | F29: 0 | G29: 0 | H29: 0
A30: Construits entre 1981 et 1990 | B30: 1 | C30: 1 | D30: 1 | E30: 1 | F30: 0 | G30: 0 | H30: 0
A31: Construits entre 1991 et 2000 | B31: 68 | C31: 66 | D31: 64 | E31: 58 | F31: 6 | G31: 2 | H31: 2
A32: Construits entre 2001 et 2005 | B32: 1 | C32: 1 | D32: 1 | E32: 1 | F32: 0 | G32: 0 | H32: 0
A33: Construits entre 2006 et 2010 | B33: 1 | C33: 0 | D33: 0 | E33: 0 | F33: 0 | G33: 0 | H33: 1
A34: Construits entre 2011 et 2014 | B34: 1 | C34: 0 | D34: 0 | E34: 0 | F34: 0 | G34: 0 | H34: 1
A35: 2 étages | B35: =SUM(B36:B45) -> 2967 | C35: =SUM(C36:C45) -> 2945 | D35: 2895 | E35: 1925 | F35: 970 | G35: 50 | H35: 22
A36: Construits avant 1919 | B36: 285 | C36: 282 | D36: 274 | E36: 225 | F36: 49 | G36: 8 | H36: 3
A37: Construits entre 1919 et 1945 | B37: 1008 | C37: 1007 | D37: 1001 | E37: 903 | F37: 98 | G37: 6 | H37: 1
A38: Construits entre 1946 et 1960 | B38: 1099 | C38: 1095 | D38: 1074 | E38: 496 | F38: 578 | G38: 21 | H38: 4
A39: Construits entre 1961 et 1970 | B39: 207 | C39: 199 | D39: 197 | E39: 105 | F39: 92 | G39: 2 | H39: 8
A40: Construits entre 1971 et 1980 | B40: 57 | C40: 56 | D40: 54 | E40: 10 | F40: 44 | G40: 2 | H40: 1
A41: Construits entre 1981 et 1990 | B41: 149 | C41: 148 | D41: 147 | E41: 101 | F41: 46 | G41: 1 | H41: 1
A42: Construits entre 1991 et 2000 | B42: 121 | C42: 118 | D42: 108 | E42: 62 | F42: 46 | G42: 10 | H42: 3
A43: Construits entre 2001 et 2005 | B43: 12 | C43: 12 | D43: 12 | E43: 10 | F43: 2 | G43: 0 | H43: 0
A44: Construits entre 2006 et 2010 | B44: 18 | C44: 17 | D44: 17 | E44: 8 | F44: 9 | G44: 0 | H44: 1
A45: Construits entre 2011 et 2014 | B45: 11 | C45: 11 | D45: 11 | E45: 5 | F45: 6 | G45: 0 | H45: 0
A46: 3 étages | B46: =SUM(B47:B56) -> 5453 | C46: =SUM(C47:C56) -> 5398 | D46: 5264 | E46: 1362 | F46: 3902 | G46: 134 | H46: 55
A47: Construits avant 1919 | B47: 270 | C47: 254 | D47: 227 | E47: 83 | F47: 144 | G47: 27 | H47: 16
A48: Construits entre 1919 et 1945 | B48: 1235 | C48: 1229 | D48: 1215 | E48: 857 | F48: 358 | G48: 14 | H48: 6
A49: Construits entre 1946 et 1960 | B49: 1693 | C49: 1687 | D49: 1674 | E49: 87 | F49: 1587 | G49: 13 | H49: 6
A50: Construits entre 1961 et 1970 | B50: 659 | C50: 650 | D50: 634 | E50: 8 | F50: 626 | G50: 16 | H50: 9
A51: Construits entre 1971 et 1980 | B51: 303 | C51: 302 | D51: 285 | E51: 10 | F51: 275 | G51: 17 | H51: 1
A52: Construits entre 1981 et 1990 | B52: 399 | C52: 397 | D52: 388 | E52: 85 | F52: 303 | G52: 9 | H52: 2
A53: Construits entre 1991 et 2000 | B53: 531 | C53: 518 | D53: 488 | E53: 83 | F53: 405 | G53: 30 | H53: 13
A54: Construits entre 2001 et 2005 | B54: 102 | C54: 100 | D54: 98 | E54: 17 | F54: 81 | G54: 2 | H54: 2
A55: Construits entre 2006 et 2010 | B55: 141 | C55: 141 | D55: 138 | E55: 73 | F55: 65 | G55: 3 | H55: 0
A56: Construits entre 2011 et 2014 | B56: 120 | C56: 120 | D56: 117 | E56: 59 | F56: 58 | G56: 3 | H56: 0
A57: 4 étages | B57: =SUM(B58:B67) -> 7113 | C57: =SUM(C58:C67) -> 7032 | D57: 6762 | E57: 2592 | F57: 4170 | G57: 270 | H57: 81
A58: Construits avant 1919 | B58: 209 | C58: 198 | D58: 163 | E58: 56 | F58: 107 | G58: 35 | H58: 11
A59: Construits entre 1919 et 1945 | B59: 1485 | C59: 1472 | D59: 1433 | E59: 1083 | F59: 350 | G59: 39 | H59: 13
A60: Construits entre 1946 et 1960 | B60: 2640 | C60: 2630 | D60: 2581 | E60: 1417 | F60: 1164 | G60: 49 | H60: 10
A61: Construits entre 1961 et 1970 | B61: 735 | C61: 732 | D61: 708 | E61: 1 | F61: 707 | G61: 24 | H61: 3
A62: Construits entre 1971 et 1980 | B62: 495 | C62: 480 | D62: 454 | E62: 0 | F62: 454 | G62: 26 | H62: 15
A63: Construits entre 1981 et 1990 | B63: 365 | C63: 360 | D63: 338 | E63: 2 | F63: 336 | G63: 22 | H63: 5
A64: Construits entre 1991 et 2000 | B64: 725 | C64: 706 | D64: 665 | E64: 9 | F64: 656 | G64: 41 | H64: 19
A65: Construits entre 2001 et 2005 | B65: 175 | C65: 175 | D65: 165 | E65: 12 | F65: 153 | G65: 10 | H65: 0
A66: Construits entre 2006 et 2010 | B66: 197 | C66: 193 | D66: 172 | E66: 12 | F66: 160 | G66: 21 | H66: 4
A67: Construits entre 2011 et 2014 | B67: 87 | C67: 86 | D67: 83 | E67: 0 | F67: 83 | G67: 3 | H67: 1
A68: 5 étages | B68: =SUM(B69:B78) -> 3903 | C68: =SUM(C69:C78) -> 3840 | D68: 3550 | E68: 66 | F68: 3484 | G68: 290 | H68: 63
A69: Construits avant 1919 | B69: 148 | C69: 144 | D69: 100 | E69: 2 | F69: 98 | G69: 44 | H69: 4
A70: Construits entre 1919 et 1945 | B70: 865 | C70: 862 | D70: 785 | E70: 37 | F70: 748 | G70: 77 | H70: 3
A71: Construits entre 1946 et 1960 | B71: 1308 | C71: 1299 | D71: 1246 | E71: 0 | F71: 1246 | G71: 53 | H71: 9
A72: Construits entre 1961 et 1970 | B72: 477 | C72: 472 | D72: 456 | E72: 20 | F72: 436 | G72: 16 | H72: 5
A73: Construits entre 1971 et 1980 | B73: 315 | C73: 308 | D73: 293 | E73: 0 | F73: 293 | G73: 15 | H73: 7
A74: Construits entre 1981 et 1990 | B74: 176 | C74: 175 | D74: 162 | E74: 0 | F74: 162 | G74: 13 | H74: 1
A75: Construits entre 1991 et 2000 | B75: 346 | C75: 317 | D75: 278 | E75: 7 | F75: 271 | G75: 39 | H75: 29
A76: Construits entre 2001 et 2005 | B76: 68 | C76: 68 | D76: 59 | E76: 0 | F76: 59 | G76: 9 | H76: 0
A77: Construits entre 2006 et 2010 | B77: 133 | C77: 130 | D77: 114 | E77: 0 | F77: 114 | G77: 16 | H77: 3
A78: Construits entre 2011 et 2014 | B78: 67 | C78: 65 | D78: 57 | E78: 0 | F78: 57 | G78: 8 | H78: 2
A79: 6 étages et plus | B79: =SUM(B80:B89) -> 3271 | C79: =SUM(C80:C89) -> 3186 | D79: 2623 | E79: 0 | F79: 2623 | G79: 563 | H79: 85
A80: Construits avant 1919 | B80: 173 | C80: 160 | D80: 79 | E80: 0 | F80: 79 | G80: 81 | H80: 13
A81: Construits entre 1919 et 1945 | B81: 745 | C81: 738 | D81: 621 | E81: 0 | F81: 621 | G81: 117 | H81: 7
A82: Construits entre 1946 et 1960 | B82: 431 | C82: 424 | D82: 376 | E82: 0 | F82: 376 | G82: 48 | H82: 7
A83: Construits entre 1961 et 1970 | B83: 651 | C83: 633 | D83: 547 | E83: 0 | F83: 547 | G83: 86 | H83: 18
A84: Construits entre 1971 et 1980 | B84: 548 | C84: 528 | D84: 467 | E84: 0 | F84: 467 | G84: 61 | H84: 20
A85: Construits entre 1981 et 1990 | B85: 191 | C85: 186 | D85: 144 | E85: 0 | F85: 144 | G85: 42 | H85: 5
A86: Construits entre 1991 et 2000 | B86: 164 | C86: 160 | D86: 115 | E86: 0 | F86: 115 | G86: 45 | H86: 4
A87: Construits entre 2001 et 2005 | B87: 96 | C87: 91 | D87: 63 | E87: 0 | F87: 63 | G87: 28 | H87: 5
A88: Construits entre 2006 et 2010 | B88: 139 | C88: 136 | D88: 111 | E88: 0 | F88: 111 | G88: 25 | H88: 3
A89: Construits entre 2011 et 2014 | B89: 133 | C89: 130 | D89: 100 | E89: 0 | F89: 100 | G89: 30 | H89: 3
A92: * Population statistique: cf. Explications | B92: www.bwo.admin.ch/dokumentation/00101/00530/00531/index.html?lang=fr
A93: Office fédéral du logement OFL
A94: Renseignements : info@bwo.admin.ch

Sheet 9.2.2.1_BWO_I
A1: Edifici di utilità pubblica* secondo la categoria, l'epoca di costruzione e il numero di piani | H1: T 9.02.02.01-UFAB
A2: 2014
B4: Edifici ad uso abitativo
B5: Totale | C5: Edifici abitativi | H5: Edifici ad uso parzialmente abitativo
C6: Totale | D6: Edifici esclusivamente abitativi | G6: Edifici con utilizzazione accessoria
D7: Totale | E7: Case unifamiliari | F7: Case plurifamiliari
A9: Totale | B9: 22876 | C9: 22558 | D9: 21247 | E9: 6079 | F9: 15168 | G9: 1311 | H9: 318
A11: Secondo l'epoca di costruzione
A12: Costruiti prima del 1919 | B12: 1088 | C12: 1041 | D12: 845 | E12: 368 | F12: 477 | G12: 196 | H12: 47
A13: Costruiti tra il 1919 e il 1945 | B13: 5369 | C13: 5338 | D13: 5085 | E13: 2910 | F13: 2175 | G13: 253 | H13: 31
A14: Costruiti tra il 1946 e il 1960 | B14: 7179 | C14: 7142 | D14: 6958 | E14: 2005 | F14: 4953 | G14: 184 | H14: 37
A15: Costruiti tra il 1961 e il 1970 | B15: 2783 | C15: 2734 | D15: 2589 | E15: 170 | F15: 2419 | G15: 145 | H15: 49
A16: Costruiti tra il 1971 e il 1980 | B16: 1719 | C16: 1675 | D16: 1554 | E16: 21 | F16: 1533 | G16: 121 | H16: 44
A17: Costruiti tra il 1981 e il 1990 | B17: 1281 | C17: 1267 | D17: 1180 | E17: 189 | F17: 991 | G17: 87 | H17: 14
A18: Costruiti tra il 1991 e il 2000 | B18: 1955 | C18: 1885 | D18: 1718 | E18: 219 | F18: 1499 | G18: 167 | H18: 70
A19: Costruiti tra il 2001 e il 2005 | B19: 454 | C19: 447 | D19: 398 | E19: 40 | F19: 358 | G19: 49 | H19: 7
A20: Costruiti tra il 2006 e il 2010 | B20: 629 | C20: 617 | D20: 552 | E20: 93 | F20: 459 | G20: 65 | H20: 12
A21: Costruiti tra il 2011 e il 2014 | B21: 419 | C21: 412 | D21: 368 | E21: 64 | F21: 304 | G21: 44 | H21: 7
A23: Secondo il numero di piani
A24: 1 piano | B24: =SUM(B25:B34) -> 169 | C24: =SUM(C25:C34) -> 157 | D24: 153 | E24: 134 | F24: 19 | G24: 4 | H24: 12
A25: Costruiti prima del 1919 | B25: 3 | C25: 3 | D25: 2 | E25: 2 | F25: 0 | G25: 1 | H25: 0
A26: Costruiti tra il 1919 e il 1945 | B26: 31 | C26: 30 | D26: 30 | E26: 30 | F26: 0 | G26: 0 | H26: 1
A27: Costruiti tra il 1946 e il 1960 | B27: 8 | C27: 7 | D27: 7 | E27: 5 | F27: 2 | G27: 0 | H27: 1
A28: Costruiti tra il 1961 e il 1970 | B28: 54 | C28: 48 | D28: 47 | E28: 36 | F28: 11 | G28: 1 | H28: 6
A29: Costruiti tra il 1971 e il 1980 | B29: 1 | C29: 1 | D29: 1 | E29: 1 | F29: 0 | G29: 0 | H29: 0
A30: Costruiti tra il 1981 e il 1990 | B30: 1 | C30: 1 | D30: 1 | E30: 1 | F30: 0 | G30: 0 | H30: 0
A31: Costruiti tra il 1991 e il 2000 | B31: 68 | C31: 66 | D31: 64 | E31: 58 | F31: 6 | G31: 2 | H31: 2
A32: Costruiti tra il 2001 e il 2005 | B32: 1 | C32: 1 | D32: 1 | E32: 1 | F32: 0 | G32: 0 | H32: 0
A33: Costruiti tra il 2006 e il 2010 | B33: 1 | C33: 0 | D33: 0 | E33: 0 | F33: 0 | G33: 0 | H33: 1
A34: Costruiti tra il 2011 e il 2014 | B34: 1 | C34: 0 | D34: 0 | E34: 0 | F34: 0 | G34: 0 | H34: 1
A35: 2 piani | B35: =SUM(B36:B45) -> 2967 | C35: =SUM(C36:C45) -> 2945 | D35: 2895 | E35: 1925 | F35: 970 | G35: 50 | H35: 22
A36: Costruiti prima del 1919 | B36: 285 | C36: 282 | D36: 274 | E36: 225 | F36: 49 | G36: 8 | H36: 3
A37: Costruiti tra il 1919 e il 1945 | B37: 1008 | C37: 1007 | D37: 1001 | E37: 903 | F37: 98 | G37: 6 | H37: 1
A38: Costruiti tra il 1946 e il 1960 | B38: 1099 | C38: 1095 | D38: 1074 | E38: 496 | F38: 578 | G38: 21 | H38: 4
A39: Costruiti tra il 1961 e il 1970 | B39: 207 | C39: 199 | D39: 197 | E39: 105 | F39: 92 | G39: 2 | H39: 8
A40: Costruiti tra il 1971 e il 1980 | B40: 57 | C40: 56 | D40: 54 | E40: 10 | F40: 44 | G40: 2 | H40: 1
A41: Costruiti tra il 1981 e il 1990 | B41: 149 | C41: 148 | D41: 147 | E41: 101 | F41: 46 | G41: 1 | H41: 1
A42: Costruiti tra il 1991 e il 2000 | B42: 121 | C42: 118 | D42: 108 | E42: 62 | F42: 46 | G42: 10 | H42: 3
A43: Costruiti tra il 2001 e il 2005 | B43: 12 | C43: 12 | D43: 12 | E43: 10 | F43: 2 | G43: 0 | H43: 0
A44: Costruiti tra il 2006 e il 2010 | B44: 18 | C44: 17 | D44: 17 | E44: 8 | F44: 9 | G44: 0 | H44: 1
A45: Costruiti tra il 2011 e il 2014 | B45: 11 | C45: 11 | D45: 11 | E45: 5 | F45: 6 | G45: 0 | H45: 0
A46: 3 piani | B46: =SUM(B47:B56) -> 5453 | C46: =SUM(C47:C56) -> 5398 | D46: 5264 | E46: 1362 | F46: 3902 | G46: 134 | H46: 55
A47: Costruiti prima del 1919 | B47: 270 | C47: 254 | D47: 227 | E47: 83 | F47: 144 | G47: 27 | H47: 16
A48: Costruiti tra il 1919 e il 1945 | B48: 1235 | C48: 1229 | D48: 1215 | E48: 857 | F48: 358 | G48: 14 | H48: 6
A49: Costruiti tra il 1946 e il 1960 | B49: 1693 | C49: 1687 | D49: 1674 | E49: 87 | F49: 1587 | G49: 13 | H49: 6
A50: Costruiti tra il 1961 e il 1970 | B50: 659 | C50: 650 | D50: 634 | E50: 8 | F50: 626 | G50: 16 | H50: 9
A51: Costruiti tra il 1971 e il 1980 | B51: 303 | C51: 302 | D51: 285 | E51: 10 | F51: 275 | G51: 17 | H51: 1
A52: Costruiti tra il 1981 e il 1990 | B52: 399 | C52: 397 | D52: 388 | E52: 85 | F52: 303 | G52: 9 | H52: 2
A53: Costruiti tra il 1991 e il 2000 | B53: 531 | C53: 518 | D53: 488 | E53: 83 | F53: 405 | G53: 30 | H53: 13
A54: Costruiti tra il 2001 e il 2005 | B54: 102 | C54: 100 | D54: 98 | E54: 17 | F54: 81 | G54: 2 | H54: 2
A55: Costruiti tra il 2006 e il 2010 | B55: 141 | C55: 141 | D55: 138 | E55: 73 | F55: 65 | G55: 3 | H55: 0
A56: Costruiti tra il 2011 e il 2014 | B56: 120 | C56: 120 | D56: 117 | E56: 59 | F56: 58 | G56: 3 | H56: 0
A57: 4 piani | B57: =SUM(B58:B67) -> 7113 | C57: =SUM(C58:C67) -> 7032 | D57: 6762 | E57: 2592 | F57: 4170 | G57: 270 | H57: 81
A58: Costruiti prima del 1919 | B58: 209 | C58: 198 | D58: 163 | E58: 56 | F58: 107 | G58: 35 | H58: 11
A59: Costruiti tra il 1919 e il 1945 | B59: 1485 | C59: 1472 | D59: 1433 | E59: 1083 | F59: 350 | G59: 39 | H59: 13
A60: Costruiti tra il 1946 e il 1960 | B60: 2640 | C60: 2630 | D60: 2581 | E60: 1417 | F60: 1164 | G60: 49 | H60: 10
A61: Costruiti tra il 1961 e il 1970 | B61: 735 | C61: 732 | D61: 708 | E61: 1 | F61: 707 | G61: 24 | H61: 3
A62: Costruiti tra il 1971 e il 1980 | B62: 495 | C62: 480 | D62: 454 | E62: 0 | F62: 454 | G62: 26 | H62: 15
A63: Costruiti tra il 1981 e il 1990 | B63: 365 | C63: 360 | D63: 338 | E63: 2 | F63: 336 | G63: 22 | H63: 5
A64: Costruiti tra il 1991 e il 2000 | B64: 725 | C64: 706 | D64: 665 | E64: 9 | F64: 656 | G64: 41 | H64: 19
A65: Costruiti tra il 2001 e il 2005 | B65: 175 | C65: 175 | D65: 165 | E65: 12 | F65: 153 | G65: 10 | H65: 0
A66: Costruiti tra il 2006 e il 2010 | B66: 197 | C66: 193 | D66: 172 | E66: 12 | F66: 160 | G66: 21 | H66: 4
A67: Costruiti tra il 2011 e il 2014 | B67: 87 | C67: 86 | D67: 83 | E67: 0 | F67: 83 | G67: 3 | H67: 1
A68: 5 piani | B68: =SUM(B69:B78) -> 3903 | C68: =SUM(C69:C78) -> 3840 | D68: 3550 | E68: 66 | F68: 3484 | G68: 290 | H68: 63
A69: Costruiti prima del 1919 | B69: 148 | C69: 144 | D69: 100 | E69: 2 | F69: 98 | G69: 44 | H69: 4
A70: Costruiti tra il 1919 e il 1945 | B70: 865 | C70: 862 | D70: 785 | E70: 37 | F70: 748 | G70: 77 | H70: 3
A71: Costruiti tra il 1946 e il 1960 | B71: 1308 | C71: 1299 | D71: 1246 | E71: 0 | F71: 1246 | G71: 53 | H71: 9
A72: Costruiti tra il 1961 e il 1970 | B72: 477 | C72: 472 | D72: 456 | E72: 20 | F72: 436 | G72: 16 | H72: 5
A73: Costruiti tra il 1971 e il 1980 | B73: 315 | C73: 308 | D73: 293 | E73: 0 | F73: 293 | G73: 15 | H73: 7
A74: Costruiti tra il 1981 e il 1990 | B74: 176 | C74: 175 | D74: 162 | E74: 0 | F74: 162 | G74: 13 | H74: 1
A75: Costruiti tra il 1991 e il 2000 | B75: 346 | C75: 317 | D75: 278 | E75: 7 | F75: 271 | G75: 39 | H75: 29
A76: Costruiti tra il 2001 e il 2005 | B76: 68 | C76: 68 | D76: 59 | E76: 0 | F76: 59 | G76: 9 | H76: 0
A77: Costruiti tra il 2006 e il 2010 | B77: 133 | C77: 130 | D77: 114 | E77: 0 | F77: 114 | G77: 16 | H77: 3
A78: Costruiti tra il 2011 e il 2014 | B78: 67 | C78: 65 | D78: 57 | E78: 0 | F78: 57 | G78: 8 | H78: 2
A79: 6 piani e più | B79: =SUM(B80:B89) -> 3271 | C79: =SUM(C80:C89) -> 3186 | D79: 2623 | E79: 0 | F79: 2623 | G79: 563 | H79: 85
A80: Costruiti prima del 1919 | B80: 173 | C80: 160 | D80: 79 | E80: 0 | F80: 79 | G80: 81 | H80: 13
A81: Costruiti tra il 1919 e il 1945 | B81: 745 | C81: 738 | D81: 621 | E81: 0 | F81: 621 | G81: 117 | H81: 7
A82: Costruiti tra il 1946 e il 1960 | B82: 431 | C82: 424 | D82: 376 | E82: 0 | F82: 376 | G82: 48 | H82: 7
A83: Costruiti tra il 1961 e il 1970 | B83: 651 | C83: 633 | D83: 547 | E83: 0 | F83: 547 | G83: 86 | H83: 18
A84: Costruiti tra il 1971 e il 1980 | B84: 548 | C84: 528 | D84: 467 | E84: 0 | F84: 467 | G84: 61 | H84: 20
A85: Costruiti tra il 1981 e il 1990 | B85: 191 | C85: 186 | D85: 144 | E85: 0 | F85: 144 | G85: 42 | H85: 5
A86: Costruiti tra il 1991 e il 2000 | B86: 164 | C86: 160 | D86: 115 | E86: 0 | F86: 115 | G86: 45 | H86: 4
A87: Costruiti tra il 2001 e il 2005 | B87: 96 | C87: 91 | D87: 63 | E87: 0 | F87: 63 | G87: 28 | H87: 5
A88: Costruiti tra il 2006 e il 2010 | B88: 139 | C88: 136 | D88: 111 | E88: 0 | F88: 111 | G88: 25 | H88: 3
A89: Costruiti tra il 2011 e il 2014 | B89: 133 | C89: 130 | D89: 100 | E89: 0 | F89: 100 | G89: 30 | H89: 3
A91: * Popolazione statistica: conf. Illustrazioni | B91: www.bwo.admin.ch/dokumentation/00101/00530/00531/index.html?lang=it
A92: Ufficio federale delle abitazioni UFAB
A93: Informazioni: info@bwo.admin.ch
